[Event "Open NK Rapid 2025 bord 26-50"]
[Site "Helmond, Netherlands"]
[Date "2025.05.03"]
[Round "1.7"]
[White "Van De Vreede, Adrie"]
[Black "Geboers, Jimmy"]
[Result "0-1"]
[TimeControl "15 min +5 sec increment"]
[WhiteFideId "40107248"]
[BlackFideId "262919"]
[WhiteElo "1727"]
[BlackElo "2065"]

1. e4 {[%clk 00:15:07]} {[%emt 00:00:02]} e6 {[%clk 00:15:08]} {[%emt
00:00:02]} 2. d4 {[%clk 00:15:08]} {[%emt 00:00:05]} d5 {[%clk 00:15:11]}
{[%emt 00:00:02]} 3. Nc3 {[%clk 00:15:00]} {[%emt 00:00:13]} Nf6 {[%clk
00:15:13]} {[%emt 00:00:02]} 4. e5 {[%clk 00:15:04]} {[%emt 00:00:02]} Nfd7
{[%clk 00:15:16]} {[%emt 00:00:02]} 5. Nce2 {[%clk 00:14:59]} {[%emt 00:00:10]}
c5 {[%clk 00:15:18]} {[%emt 00:00:03]} 6. c3 {[%clk 00:14:36]} {[%emt
00:00:28]} Nc6 {[%clk 00:15:19]} {[%emt 00:00:04]} 7. a3 {[%clk 00:14:36]}
{[%emt 00:00:05]} a5 {[%clk 00:15:06]} {[%emt 00:00:18]} 8. Nf3 {[%clk
00:14:25]} {[%emt 00:00:15]} b6 {[%clk 00:15:00]} {[%emt 00:00:10]} 9. h4
{[%clk 00:13:56]} {[%emt 00:00:35]} Ba6 {[%clk 00:15:00]} {[%emt 00:00:05]} 10.
Nf4 {[%clk 00:10:33]} {[%emt 00:03:28]} Be7 {[%clk 00:14:32]} {[%emt 00:00:33]}
11. Nh5 {[%clk 00:09:22]} {[%emt 00:01:16]} Bxf1 {[%clk 00:14:09]} {[%emt
00:00:28]} 12. Nxg7+ {[%clk 00:09:05]} {[%emt 00:00:23]} Kf8 {[%clk 00:14:09]}
{[%emt 00:00:05]} 13. Bh6 {[%clk 00:09:06]} {[%emt 00:00:03]} Kg8 {[%clk
00:14:05]} {[%emt 00:00:06]} 14. Kxf1 {[%clk 00:09:04]} {[%emt 00:00:10]} Bf8
{[%clk 00:12:34]} {[%emt 00:01:35]} 15. Bg5 {[%clk 00:08:07]} {[%emt 00:01:03]}
Be7 {[%clk 00:12:00]} {[%emt 00:00:39]} 16. Nh5 {[%clk 00:07:37]} {[%emt
00:00:35]} h6 {[%clk 00:11:54]} {[%emt 00:00:11]} 17. Bxe7 {[%clk 00:06:38]}
{[%emt 00:01:05]} Qxe7 {[%clk 00:11:54]} {[%emt 00:00:04]} 18. Nd2 {[%clk
00:06:21]} {[%emt 00:00:23]} Kf8 {[%clk 00:11:36]} {[%emt 00:00:23]} 19. Qg4
{[%clk 00:04:52]} {[%emt 00:01:34]} Rg8 {[%clk 00:11:36]} {[%emt 00:00:04]} 20.
Qf4 {[%clk 00:04:54]} {[%emt 00:00:03]} Rg6 {[%clk 00:11:18]} {[%emt 00:00:22]}
21. Ng3 {[%clk 00:04:52]} {[%emt 00:00:08]} cxd4 {[%clk 00:11:09]} {[%emt
00:00:15]} 22. cxd4 {[%clk 00:04:27]} {[%emt 00:00:30]} Ke8 {[%clk 00:10:59]}
{[%emt 00:00:14]} 23. Rc1 {[%clk 00:04:19]} {[%emt 00:00:13]} Rc8 {[%clk
00:10:28]} {[%emt 00:00:37]} 24. h5 {[%clk 00:04:06]} {[%emt 00:00:18]} Qg5
{[%clk 00:10:00]} {[%emt 00:00:30]} 25. Qxg5 {[%clk 00:03:20]} {[%emt
00:00:53]} Rxg5 {[%clk 00:10:03]} {[%emt 00:00:02]} 26. Nf3 {[%clk 00:03:22]}
{[%emt 00:00:03]} Rg4 {[%clk 00:09:56]} {[%emt 00:00:11]} 27. Rh4 {[%clk
00:03:16]} {[%emt 00:00:12]} Rxh4 {[%clk 00:09:52]} {[%emt 00:00:09]} 28. Nxh4
{[%clk 00:03:20]} {[%emt 00:00:02]} Kd8 {[%clk 00:09:42]} {[%emt 00:00:14]} 29.
Nf3 {[%clk 00:03:23]} {[%emt 00:00:02]} Rc7 {[%clk 00:09:43]} {[%emt 00:00:04]}
30. Ke1 {[%clk 00:03:17]} {[%emt 00:00:12]} Nxd4 {[%clk 00:09:31]} {[%emt
00:00:16]} 31. Rxc7 {[%clk 00:03:01]} {[%emt 00:00:22]} Nxf3+ {[%clk 00:09:33]}
{[%emt 00:00:03]} 32. Ke2 {[%clk 00:02:59]} {[%emt 00:00:05]} Kxc7 {[%clk
00:09:19]} {[%emt 00:00:21]} 33. Kxf3 {[%clk 00:03:02]} {[%emt 00:00:02]} Nxe5+
{[%clk 00:09:21]} {[%emt 00:00:03]} 34. Ke2 {[%clk 00:02:41]} {[%emt 00:00:27]}
Nc4 {[%clk 00:09:20]} {[%emt 00:00:05]} 35. f4 {[%clk 00:01:38]} {[%emt
00:01:07]} Nxb2 {[%clk 00:09:04]} {[%emt 00:00:22]} 36. f5 {[%clk 00:01:42]}
{[%emt 00:00:01]} Nc4 {[%clk 00:08:54]} {[%emt 00:00:15]} 37. fxe6 {[%clk
00:01:22]} {[%emt 00:00:25]} fxe6 {[%emt 00:01:04]} 0-1

[Event "Open NK Rapid 2025 bord 26-50"]
[Site "Helmond, Netherlands"]
[Date "2025.05.03"]
[Round "1.8"]
[White "Bekkink, Sereyo"]
[Black "Rogozyanskiy, Alexander"]
[Result "0-1"]
[TimeControl "15 min +5 sec increment"]
[WhiteFideId "1037161"]
[BlackFideId "1092138"]
[WhiteElo "2064"]
[BlackElo "1726"]

1. c4 {[%clk 00:15:09]} e5 {[%clk 00:15:09]} 2. g3 {[%clk 00:15:13]} {[%emt
00:00:01]} c6 {[%clk 00:15:12]} {[%emt 00:00:03]} 3. Bg2 {[%emt 00:00:02]} d5
{[%clk 00:15:14]} 4. cxd5 {[%clk 00:14:43]} {[%emt 00:00:39]} cxd5 {[%clk
00:15:18]} {[%emt 00:00:01]} 5. Nf3 {[%clk 00:14:48]} Nc6 {[%clk 00:15:17]}
{[%emt 00:00:06]} 6. O-O {[%clk 00:14:50]} {[%emt 00:00:02]} Nf6 {[%clk
00:15:09]} {[%emt 00:00:13]} 7. d3 {[%clk 00:12:45]} {[%emt 00:02:11]} h6
{[%clk 00:14:29]} {[%emt 00:00:45]} 8. Nc3 {[%clk 00:12:32]} {[%emt 00:00:18]}
a6 {[%clk 00:13:11]} {[%emt 00:01:23]} 9. a3 {[%clk 00:12:25]} {[%emt
00:00:12]} Be6 {[%clk 00:12:28]} {[%emt 00:00:48]} 10. b4 {[%clk 00:12:15]}
{[%emt 00:00:15]} Bd6 {[%clk 00:10:02]} {[%emt 00:02:31]} 11. Bb2 {[%clk
00:12:19]} O-O {[%clk 00:10:05]} {[%emt 00:00:02]} 12. Rc1 {[%clk 00:12:15]}
{[%emt 00:00:09]} Qe7 {[%clk 00:09:19]} {[%emt 00:00:50]} 13. Na4 {[%clk
00:12:03]} {[%emt 00:00:18]} Nd7 {[%clk 00:09:10]} {[%emt 00:00:14]} 14. Nd2
{[%clk 00:11:35]} {[%emt 00:00:33]} Rac8 {[%clk 00:08:01]} {[%emt 00:01:14]} 15.
Nb3 {[%clk 00:11:39]} {[%emt 00:00:01]} b6 {[%clk 00:08:05]} 16. e4 {[%clk
00:10:17]} {[%emt 00:01:27]} d4 {[%clk 00:07:09]} {[%emt 00:01:01]} 17. f4
{[%clk 00:09:11]} {[%emt 00:01:12]} f6 {[%clk 00:07:11]} {[%emt 00:00:02]} 18.
f5 {[%clk 00:08:44]} {[%emt 00:00:33]} Bf7 {[%clk 00:07:05]} {[%emt 00:00:10]}
19. Ba1 {[%clk 00:08:47]} {[%emt 00:00:02]} Bxb4 {[%clk 00:06:27]} {[%emt
00:00:43]} 20. axb4 {[%clk 00:08:46]} {[%emt 00:00:07]} Qxb4 {[%clk 00:06:30]}
{[%emt 00:00:02]} 21. Nd2 {[%clk 00:08:32]} {[%emt 00:00:19]} b5 {[%clk
00:06:10]} {[%emt 00:00:25]} 22. Nb2 {[%clk 00:07:37]} {[%emt 00:01:00]} a5
{[%clk 00:05:39]} {[%emt 00:00:36]} 23. Nf3 {[%clk 00:07:26]} {[%emt 00:00:16]}
a4 {[%clk 00:04:02]} {[%emt 00:01:42]} 24. Qd2 {[%clk 00:07:30]} Qxd2 {[%clk
00:03:42]} {[%emt 00:00:25]} 25. Nxd2 {[%clk 00:07:34]} {[%emt 00:00:01]} a3
{[%clk 00:03:43]} {[%emt 00:00:04]} 26. Nd1 {[%clk 00:07:36]} {[%emt 00:00:03]}
Nb4 {[%clk 00:03:46]} {[%emt 00:00:02]} 27. Rb1 {[%clk 00:05:02]} {[%emt
00:02:39]} Nc2 {[%clk 00:03:20]} {[%emt 00:00:30]} 28. Nf2 {[%clk 00:05:06]} b4
{[%clk 00:02:52]} {[%emt 00:00:33]} 29. Bf3 {[%clk 00:04:07]} {[%emt 00:01:05]}
Ba2 {[%clk 00:02:33]} {[%emt 00:00:24]} 30. Rbc1 {[%clk 00:03:25]} {[%emt
00:00:47]} Ne3 {[%clk 00:02:00]} {[%emt 00:00:38]} 31. Rfe1 {[%clk 00:03:22]}
{[%emt 00:00:08]} b3 {[%clk 00:02:04]} 32. Nxb3 {[%clk 00:01:08]} {[%emt
00:02:19]} Bxb3 {[%clk 00:02:00]} {[%emt 00:00:09]} 33. Rb1 {[%clk 00:01:12]}
Bc2 {[%clk 00:01:33]} {[%emt 00:00:32]} 34. Rb7 {[%clk 00:01:16]} {[%emt
00:00:01]} Nc5 {[%clk 00:01:38]} {[%emt 00:00:01]} 35. Ra7 {[%clk 00:01:21]}
Ra8 {[%clk 00:01:33]} {[%emt 00:00:10]} 36. Rc7 {[%clk 00:01:13]} {[%emt
00:00:12]} Rfc8 {[%clk 00:01:37]} 37. Rxc8+ {[%clk 00:01:08]} {[%emt 00:00:10]}
Rxc8 {[%clk 00:01:41]} {[%emt 00:00:01]} 38. Ng4 {[%clk 00:00:48]} {[%emt
00:00:25]} Nxg4 {[%clk 00:01:18]} {[%emt 00:00:27]} 39. Bxg4 {[%clk 00:00:52]}
Nxd3 {[%clk 00:01:21]} {[%emt 00:00:03]} 40. Re2 {[%clk 00:00:55]} {[%emt
00:00:02]} Bd1 {[%clk 00:01:11]} {[%emt 00:00:15]} 41. Ra2 {[%clk 00:00:43]}
{[%emt 00:00:17]} Bxg4 {[%clk 00:00:58]} {[%emt 00:00:18]} 42. Rxa3 {[%clk
00:00:47]} Rc1+ {[%clk 00:00:53]} {[%emt 00:00:11]} 43. Kg2 {[%clk 00:00:51]}
{[%emt 00:00:01]} Rd1 {[%clk 00:00:42]} {[%emt 00:00:15]} 44. h3 {[%clk
00:00:49]} {[%emt 00:00:09]} Rd2+ {[%clk 00:00:44]} {[%emt 00:00:03]} 45. Kg1
{[%clk 00:00:51]} {[%emt 00:00:02]} Bxh3 {[%clk 00:00:43]} {[%emt 00:00:05]} 46.
g4 {[%emt 00:00:09]} Rg2+ {[%clk 00:00:47]} 0-1

[Event "Open NK Rapid 2025 bord 26-50"]
[Site "Helmond, Netherlands"]
[Date "2025.05.03"]
[Round "1.9"]
[White "Gardiner, Nina"]
[Black "Roebers, Jan"]
[Result "0-1"]
[TimeControl "15 min +5 sec increment"]
[WhiteFideId "14306867"]
[BlackFideId "1007815"]
[WhiteElo "1723"]
[BlackElo "2058"]

1. e4 {[%clk 00:15:07]} {[%emt 00:00:02]} d6 {[%clk 00:15:09]} {[%emt
00:00:02]} 2. d4 {[%clk 00:15:09]} {[%emt 00:00:02]} Nf6 {[%clk 00:15:11]}
{[%emt 00:00:02]} 3. Nc3 {[%clk 00:15:09]} {[%emt 00:00:06]} g6 {[%clk
00:15:14]} {[%emt 00:00:02]} 4. f3 {[%clk 00:15:09]} {[%emt 00:00:04]} c6
{[%clk 00:15:14]} {[%emt 00:00:05]} 5. Be3 {[%clk 00:14:59]} {[%emt 00:00:15]}
b5 {[%clk 00:15:17]} {[%emt 00:00:03]} 6. Qd2 {[%clk 00:14:04]} {[%emt
00:01:00]} b4 {[%clk 00:15:12]} {[%emt 00:00:10]} 7. Nce2 {[%clk 00:13:35]}
{[%emt 00:00:34]} a5 {[%clk 00:15:12]} {[%emt 00:00:04]} 8. g4 {[%clk
00:12:52]} {[%emt 00:00:49]} h5 {[%clk 00:14:24]} {[%emt 00:00:53]} 9. g5
{[%clk 00:11:30]} {[%emt 00:01:26]} Nfd7 {[%clk 00:14:25]} {[%emt 00:00:05]} 10.
d5 {[%clk 00:10:10]} {[%emt 00:01:26]} c5 {[%clk 00:13:25]} {[%emt 00:01:05]}
11. f4 {[%clk 00:09:45]} {[%emt 00:00:30]} Bg7 {[%clk 00:13:11]} {[%emt
00:00:18]} 12. O-O-O {[%clk 00:09:04]} {[%emt 00:00:46]} a4 {[%clk 00:11:35]}
{[%emt 00:01:41]} 13. f5 {[%clk 00:07:41]} {[%emt 00:01:28]} Ne5 {[%clk
00:09:49]} {[%emt 00:01:51]} 14. Nf4 {[%clk 00:05:10]} {[%emt 00:02:36]} gxf5
{[%clk 00:09:17]} {[%emt 00:00:36]} 15. Be2 {[%clk 00:04:08]} {[%emt 00:01:07]}
Ba6 {[%clk 00:06:44]} {[%emt 00:02:39]} 16. Nxh5 {[%clk 00:02:41]} {[%emt
00:01:32]} Rxh5 {[%clk 00:05:36]} {[%emt 00:01:14]} 17. Bxh5 {[%clk 00:02:34]}
{[%emt 00:00:11]} Nc4 {[%clk 00:05:18]} {[%emt 00:00:23]} 18. Qf2 {[%clk
00:01:59]} {[%emt 00:00:40]} Bxb2+ {[%clk 00:04:05]} {[%emt 00:01:18]} 19. Kb1
{[%clk 00:02:03]} {[%emt 00:00:02]} Bc3 {[%clk 00:01:45]} {[%emt 00:02:25]} 20.
Qxf5 {[%clk 00:01:37]} {[%emt 00:00:31]} Nxe3 {[%clk 00:00:31]} {[%emt
00:01:19]} 21. Bxf7+ {[%clk 00:01:15]} {[%emt 00:00:26]} Kf8 {[%clk 00:00:35]}
22. Qh7 {[%clk 00:00:41]} {[%emt 00:00:39]} e6 {[%clk 00:00:34]} {[%emt
00:00:07]} 23. Nh3 {[%clk 00:00:22]} {[%emt 00:00:24]} Bg7 {[%clk 00:00:23]}
{[%emt 00:00:16]} 24. Nf4 {[%clk 00:00:10]} {[%emt 00:00:16]} Kxf7 {[%clk
00:00:23]} {[%emt 00:00:05]} 25. Qg6+ {[%clk 00:00:12]} {[%emt 00:00:03]} Kg8
{[%clk 00:00:26]} {[%emt 00:00:03]} 26. Nxe6 {[%clk 00:00:14]} {[%emt
00:00:03]} Qe7 {[%clk 00:00:29]} {[%emt 00:00:02]} 27. Rde1 {[%clk 00:00:14]}
{[%emt 00:00:04]} Nd7 {[%clk 00:00:33]} 28. Rxe3 {[%clk 00:00:17]} {[%emt
00:00:02]} Ne5 {[%clk 00:00:37]} {[%emt 00:00:01]} 29. Qh5 {[%clk 00:00:17]}
{[%emt 00:00:05]} Qf7 {[%clk 00:00:41]} {[%emt 00:00:02]} 30. Qd1 {[%clk
00:00:17]} {[%emt 00:00:05]} b3 {[%clk 00:00:44]} {[%emt 00:00:03]} 31. a3
{[%clk 00:00:19]} {[%emt 00:00:03]} bxc2+ {[%clk 00:00:47]} {[%emt 00:00:01]}
32. Kxc2 {[%clk 00:00:22]} {[%emt 00:00:02]} Rb8 {[%clk 00:00:50]} {[%emt
00:00:02]} 33. g6 {[%clk 00:00:20]} {[%emt 00:00:06]} Qf4 {[%clk 00:00:53]}
{[%emt 00:00:02]} 34. Rg3 {[%clk 00:00:06]} {[%emt 00:00:20]} Qxe4+ {[%clk
00:00:53]} {[%emt 00:00:05]} 35. Rd3 {[%clk 00:00:00]} {[%emt 00:00:09]} Bxd3+
{[%clk 00:00:53]} {[%emt 00:00:02]} 0-1

[Event "Open NK Rapid 2025 bord 26-50"]
[Site "Helmond, Netherlands"]
[Date "2025.05.03"]
[Round "1.10"]
[White "Margaryan, Aren"]
[Black "Van Stralen, Roy"]
[Result "1-0"]
[TimeControl "15 min +5 sec increment"]
[WhiteFideId "40105075"]
[WhiteElo "2054"]
[BlackElo "1723"]

1. e4 {[%clk 00:15:08]} {[%emt 00:00:01]} c5 {[%clk 00:15:09]} {[%emt
00:00:02]} 2. c3 {[%clk 00:15:11]} {[%emt 00:00:02]} Nf6 {[%clk 00:15:04]}
{[%emt 00:00:09]} 3. e5 {[%clk 00:15:15]} {[%emt 00:00:01]} Nd5 {[%emt
00:00:03]} 4. d4 {[%clk 00:15:19]} cxd4 {[%clk 00:15:05]} {[%emt 00:00:07]} 5.
cxd4 {[%clk 00:15:23]} {[%emt 00:00:02]} e6 {[%clk 00:14:51]} {[%emt 00:00:19]}
6. Nf3 {[%clk 00:15:23]} {[%emt 00:00:05]} Nc6 {[%clk 00:14:51]} {[%emt
00:00:05]} 7. Bc4 {[%clk 00:15:23]} {[%emt 00:00:04]} d6 {[%clk 00:14:38]}
{[%emt 00:00:19]} 8. O-O {[%clk 00:15:17]} {[%emt 00:00:10]} dxe5 {[%clk
00:14:34]} {[%emt 00:00:10]} 9. dxe5 {[%clk 00:15:19]} {[%emt 00:00:03]} Bc5
{[%clk 00:14:25]} {[%emt 00:00:13]} 10. Qe2 {[%clk 00:15:08]} {[%emt 00:00:16]}
O-O {[%clk 00:14:14]} {[%emt 00:00:17]} 11. Rd1 {[%clk 00:14:58]} {[%emt
00:00:14]} Nce7 {[%clk 00:13:59]} {[%emt 00:00:20]} 12. a3 {[%clk 00:13:46]}
{[%emt 00:01:17]} a5 {[%clk 00:13:18]} {[%emt 00:00:47]} 13. Nbd2 {[%clk
00:13:17]} {[%emt 00:00:33]} Bd7 {[%clk 00:12:35]} {[%emt 00:00:48]} 14. Ne4
{[%clk 00:13:07]} {[%emt 00:00:15]} Ba7 {[%clk 00:10:55]} {[%emt 00:01:46]} 15.
Bg5 {[%clk 00:12:12]} {[%emt 00:00:59]} Bc6 {[%clk 00:09:31]} {[%emt 00:01:30]}
16. b4 {[%clk 00:10:04]} {[%emt 00:02:12]} h6 {[%clk 00:08:21]} {[%emt
00:01:15]} 17. Bh4 {[%clk 00:09:01]} {[%emt 00:01:09]} g5 {[%clk 00:05:30]}
{[%emt 00:02:55]} 18. Nfxg5 {[%clk 00:08:16]} {[%emt 00:00:50]} hxg5 {[%clk
00:05:30]} {[%emt 00:00:04]} 19. Bxg5 {[%clk 00:08:20]} {[%emt 00:00:02]} Qc7
{[%clk 00:05:07]} {[%emt 00:00:29]} 20. Nf6+ {[%clk 00:06:18]} {[%emt
00:02:07]} Nxf6 {[%clk 00:04:43]} {[%emt 00:00:28]} 21. Bxf6 {[%clk 00:06:18]}
{[%emt 00:00:06]} Ng6 {[%clk 00:03:13]} {[%emt 00:01:34]} 22. Qh5 {[%clk
00:05:59]} {[%emt 00:00:24]} Qb6 {[%clk 00:02:14]} {[%emt 00:01:04]} 23. Rf1
{[%clk 00:05:42]} {[%emt 00:00:22]} Qd4 {[%clk 00:02:06]} {[%emt 00:00:13]} 24.
Qh6 {[%clk 00:05:29]} {[%emt 00:00:18]} 1-0

[Event "Open NK Rapid 2025 bord 26-50"]
[Site "Helmond, Netherlands"]
[Date "2025.05.03"]
[Round "1.11"]
[White "Deij, Casper"]
[Black "Ritzerveld, Noah"]
[Result "0-1"]
[TimeControl "15 min +5 sec increment"]
[WhiteFideId "1085816"]
[BlackFideId "1085760"]
[WhiteElo "1721"]
[BlackElo "2053"]

1. e4 {[%clk 00:15:08]} {[%emt 00:00:02]} e5 {[%clk 00:15:09]} {[%emt
00:00:01]} 2. Nf3 {[%clk 00:15:12]} {[%emt 00:00:01]} Nc6 {[%clk 00:15:14]} 3.
Bb5 {[%clk 00:15:16]} {[%emt 00:00:01]} a6 {[%clk 00:15:18]} {[%emt 00:00:01]}
4. Ba4 {[%clk 00:15:20]} {[%emt 00:00:01]} Nf6 {[%clk 00:15:21]} {[%emt
00:00:01]} 5. d3 {[%clk 00:15:23]} {[%emt 00:00:02]} b5 {[%clk 00:15:25]} 6.
Bb3 {[%clk 00:15:27]} {[%emt 00:00:01]} Bc5 {[%clk 00:15:29]} {[%emt 00:00:01]}
7. Nc3 {[%clk 00:15:29]} {[%emt 00:00:03]} d6 {[%clk 00:15:33]} {[%emt
00:00:01]} 8. O-O {[%clk 00:15:32]} {[%emt 00:00:03]} h6 {[%clk 00:15:24]}
{[%emt 00:00:12]} 9. Be3 {[%clk 00:15:35]} {[%emt 00:00:03]} Bxe3 {[%clk
00:15:08]} {[%emt 00:00:21]} 10. fxe3 {[%clk 00:15:37]} {[%emt 00:00:03]} Na5
{[%clk 00:14:58]} {[%emt 00:00:14]} 11. h3 {[%clk 00:15:10]} {[%emt 00:00:33]}
O-O {[%clk 00:14:46]} {[%emt 00:00:17]} 12. Nd5 {[%clk 00:14:35]} {[%emt
00:00:40]} Nxd5 {[%clk 00:14:18]} {[%emt 00:00:33]} 13. Bxd5 {[%clk 00:14:35]}
{[%emt 00:00:05]} c6 {[%clk 00:14:22]} {[%emt 00:00:02]} 14. Bb3 {[%clk
00:14:28]} {[%emt 00:00:11]} Nxb3 {[%clk 00:14:02]} {[%emt 00:00:25]} 15. axb3
{[%clk 00:14:31]} {[%emt 00:00:02]} Be6 {[%clk 00:13:45]} {[%emt 00:00:22]} 16.
Qd2 {[%clk 00:13:43]} {[%emt 00:00:54]} Qb6 {[%clk 00:12:36]} {[%emt 00:01:13]}
17. Kh1 {[%clk 00:12:25]} {[%emt 00:01:23]} a5 {[%clk 00:12:20]} {[%emt
00:00:21]} 18. d4 {[%clk 00:11:57]} {[%emt 00:00:33]} Qc7 {[%clk 00:11:11]}
{[%emt 00:01:14]} 19. Qc3 {[%clk 00:10:58]} {[%emt 00:01:05]} f6 {[%clk
00:10:31]} {[%emt 00:00:44]} 20. Nh4 {[%clk 00:08:24]} {[%emt 00:02:39]} Rfc8
{[%clk 00:09:23]} {[%emt 00:01:14]} 21. Rfd1 {[%clk 00:06:33]} {[%emt
00:01:55]} Rd8 {[%clk 00:07:13]} {[%emt 00:02:16]} 22. Nf5 {[%clk 00:04:48]}
{[%emt 00:01:49]} d5 {[%clk 00:05:50]} {[%emt 00:01:28]} 23. Qxc6 {[%clk
00:03:33]} {[%emt 00:01:20]} Qf7 {[%clk 00:03:55]} {[%emt 00:02:00]} 24. Qxb5
{[%clk 00:03:15]} {[%emt 00:00:22]} dxe4 {[%clk 00:03:45]} {[%emt 00:00:16]} 25.
Ng3 {[%clk 00:03:06]} {[%emt 00:00:14]} exd4 {[%clk 00:03:43]} {[%emt
00:00:07]} 26. exd4 {[%clk 00:02:59]} {[%emt 00:00:12]} Rd5 {[%clk 00:03:21]}
{[%emt 00:00:27]} 27. Qe2 {[%clk 00:02:32]} {[%emt 00:00:32]} f5 {[%clk
00:03:23]} {[%emt 00:00:04]} 28. c3 {[%clk 00:01:41]} {[%emt 00:00:56]} Qg6
{[%clk 00:03:04]} {[%emt 00:00:23]} 29. Qf2 {[%clk 00:01:11]} {[%emt 00:00:35]}
Rf8 {[%clk 00:02:59]} {[%emt 00:00:11]} 30. c4 {[%clk 00:00:58]} {[%emt
00:00:18]} Rdd8 {[%clk 00:03:01]} {[%emt 00:00:02]} 31. Rxa5 {[%clk 00:00:58]}
{[%emt 00:00:06]} f4 {[%clk 00:03:04]} {[%emt 00:00:01]} 32. Nf1 {[%clk
00:00:27]} {[%emt 00:00:36]} e3 {[%clk 00:02:50]} {[%emt 00:00:19]} 33. Qf3
{[%clk 00:00:20]} {[%emt 00:00:12]} Qc2 {[%clk 00:02:50]} {[%emt 00:00:05]} 34.
Re1 {[%clk 00:00:16]} {[%emt 00:00:09]} Rxd4 {[%clk 00:02:49]} {[%emt
00:00:06]} 35. Re5 {[%clk 00:00:13]} {[%emt 00:00:08]} Bf5 {[%clk 00:02:31]}
{[%emt 00:00:23]} 36. c5 {[%clk 00:00:11]} {[%emt 00:00:07]} Be4 {[%clk
00:02:32]} {[%emt 00:00:04]} 37. Qe2 {[%clk 00:00:13]} {[%emt 00:00:03]} Qxe2
{[%clk 00:02:20]} {[%emt 00:00:17]} 38. Rxe2 {[%clk 00:00:16]} {[%emt
00:00:02]} f3 {[%clk 00:02:24]} {[%emt 00:00:02]} 39. Rxe3 {[%clk 00:00:14]}
{[%emt 00:00:07]} fxg2+ {[%clk 00:02:26]} {[%emt 00:00:02]} 40. Kh2 {[%clk
00:00:14]} {[%emt 00:00:05]} gxf1=Q {[%emt 00:00:07]} 41. Re6 {[%clk 00:00:14]}
{[%emt 00:00:05]} Qg2# {[%clk 00:02:27]} {[%emt 00:00:03]} 0-1